[Event "Titled Tuesday Blitz August 1 Late 2023"]
[White "Gireman, Ja"]
[Black "Shtembuliak, Evgeny"]
[WhiteFideId "5043794"]
[BlackFideId "14113325"]
[WhiteElo "2594"]
[BlackElo "2872"]
[Result "0-1"]
[Round "3"]
[TimeControl "180+1"]
[Date "2023.08.01"]
[WhiteClock "0:00:01"]
[BlackClock "0:00:03"]
[Board "22"]

1. e4 {[%clk 0:03:00]}  e6 {[%clk 0:02:58]} 2. d4 {[%clk 0:03:00]}  d5 {[%clk 0:02:57]} 3. Nc3 {[%clk 0:03:01]}  Nc6 {[%clk 0:02:56]} 4. Nf3 {[%clk 0:02:52]}  Nf6 {[%clk 0:02:56]} 5. e5 {[%clk 0:02:51]}  Ne4 {[%clk 0:02:56]} 6. Bd3 {[%clk 0:02:49]}  Bb4 {[%clk 0:02:55]} 7. Bd2 {[%clk 0:02:46]}  Nxd2 {[%clk 0:02:54]} 8. Qxd2 {[%clk 0:02:47]}  Bd7 {[%clk 0:02:55]} 9. O-O {[%clk 0:02:43]}  Be7 {[%clk 0:02:54]} 10. Ne2 {[%clk 0:02:40]}  Nb4 {[%clk 0:02:53]} 11. c3 {[%clk 0:02:38]}  Nxd3 {[%clk 0:02:53]} 12. Qxd3 {[%clk 0:02:39]}  a6 {[%clk 0:02:53]} 13. a4 {[%clk 0:02:37]}  O-O {[%clk 0:02:41]} 14. Nd2 {[%clk 0:02:36]}  Qe8 {[%clk 0:02:41]} 15. b3 {[%clk 0:02:34]}  b5 {[%clk 0:02:16]} 16. axb5 {[%clk 0:02:30]}  Bxb5 {[%clk 0:02:16]} 17. c4 {[%clk 0:02:30]}  dxc4 {[%clk 0:02:17]} 18. bxc4 {[%clk 0:02:31]}  Bc6 {[%clk 0:02:17]} 19. f4 {[%clk 0:02:28]}  f6 {[%clk 0:01:44]} 20. Nf3 {[%clk 0:01:57]}  Qd7 {[%clk 0:01:38]} 21. f5 {[%clk 0:01:47]}  Bxf3 {[%clk 0:01:31]} 22. Rxf3 {[%clk 0:01:12]}  fxe5 {[%clk 0:01:31]} 23. fxe6 {[%clk 0:01:11]}  Qxe6 {[%clk 0:01:27]} 24. Re3 {[%clk 0:01:11]}  Qh6 {[%clk 0:01:09]} 25. Rh3 {[%clk 0:00:45]}  Qg6 {[%clk 0:01:00]} 26. Qxg6 {[%clk 0:00:45]}  hxg6 {[%clk 0:01:01]} 27. Re3 {[%clk 0:00:37]}  Bf6 {[%clk 0:00:53]} 28. dxe5 {[%clk 0:00:36]}  Rfe8 {[%clk 0:00:53]} 29. Ra5 {[%clk 0:00:35]}  Rab8 {[%clk 0:00:35]} 30. g3 {[%clk 0:00:33]}  Rb2 {[%clk 0:00:32]} 31. Kg2 {[%clk 0:00:16]}  Re6 {[%clk 0:00:28]} 32. Kh3 {[%clk 0:00:15]}  Bg5 {[%clk 0:00:17]} 33. Re4 {[%clk 0:00:15]}  Rc6 {[%clk 0:00:09]} 34. e6 {[%clk 0:00:15]}  Be7 {[%clk 0:00:10]} 35. Rd5 {[%clk 0:00:14]}  Rb4 {[%clk 0:00:07]} 36. Rd7 {[%clk 0:00:12]}  Kf8 {[%clk 0:00:07]} 37. Rf4+ {[%clk 0:00:12]}  Ke8 {[%clk 0:00:07]} 38. Nd4 {[%clk 0:00:12]}  Rcxc4 {[%clk 0:00:04]} 39. Rf7 {[%clk 0:00:12]}  Bf6 {[%clk 0:00:05]} 40. Ne2 {[%clk 0:00:06]}  Re4 {[%clk 0:00:04]} 41. Nf4 {[%clk 0:00:06]}  Rbd4 {[%clk 0:00:03]} 42. Rxc7 {[%clk 0:00:05]}  g5 {[%clk 0:00:02]} 43. Ng6 {[%clk 0:00:04]}  g4+ {[%clk 0:00:01]} 44. Kg2 {[%clk 0:00:04]}  Rd2+ {[%clk 0:00:01]} 45. Kf1 {[%clk 0:00:04]}  Rd1+ {[%clk 0:00:01]} 46. Kf2 {[%clk 0:00:04]}  Bd4+ {[%clk 0:00:02]} 47. Kg2 {[%clk 0:00:04]}  Re2+ {[%clk 0:00:02]} 48. Rf2 {[%clk 0:00:01]}  Rxf2# {[%clk 0:00:03]} 0-1


[Site "https://www.chess.com"]

[Event "Titled Tuesday Blitz August 1 Late 2023"]
[White "Moroni, Luca Jr"]
[Black "Tologon tegin, Semetei"]
[WhiteFideId "865834"]
[BlackFideId "13800574"]
[WhiteElo "2871"]
[BlackElo "2590"]
[Result "0-1"]
[Round "3"]
[TimeControl "180+1"]
[Date "2023.08.01"]
[WhiteClock "0:01:13"]
[BlackClock "0:00:54"]
[Board "23"]

1. Nf3 {[%clk 0:03:00]}  d5 {[%clk 0:02:51]} 2. c4 {[%clk 0:03:00]}  e6 {[%clk 0:02:50]} 3. g3 {[%clk 0:03:00]}  Nf6 {[%clk 0:02:50]} 4. Bg2 {[%clk 0:03:00]}  Be7 {[%clk 0:02:50]} 5. O-O {[%clk 0:03:01]}  O-O {[%clk 0:02:50]} 6. b3 {[%clk 0:03:01]}  Nbd7 {[%clk 0:02:49]} 7. Bb2 {[%clk 0:03:01]}  b6 {[%clk 0:02:49]} 8. e3 {[%clk 0:03:01]}  Bb7 {[%clk 0:02:49]} 9. Qe2 {[%clk 0:03:02]}  c5 {[%clk 0:02:48]} 10. Ne1 {[%clk 0:03:02]}  Qc7 {[%clk 0:02:48]} 11. Nc3 {[%clk 0:03:02]}  Rad8 {[%clk 0:02:48]} 12. Rc1 {[%clk 0:02:59]}  Rfe8 {[%clk 0:02:45]} 13. f4 {[%clk 0:02:58]}  a6 {[%clk 0:02:44]} 14. g4 {[%clk 0:02:58]}  d4 {[%clk 0:02:37]} 15. exd4 {[%clk 0:02:55]}  cxd4 {[%clk 0:02:36]} 16. Ne4 {[%clk 0:02:55]}  Nxe4 {[%clk 0:02:36]} 17. Bxe4 {[%clk 0:02:56]}  Bxe4 {[%clk 0:02:35]} 18. Qxe4 {[%clk 0:02:57]}  Nc5 {[%clk 0:02:29]} 19. Qf3 {[%clk 0:02:54]}  f5 {[%clk 0:02:17]} 20. gxf5 {[%clk 0:02:48]}  exf5 {[%clk 0:02:17]} 21. d3 {[%clk 0:02:46]}  Bf6 {[%clk 0:02:16]} 22. Ng2 {[%clk 0:02:47]}  Re6 {[%clk 0:01:56]} 23. Rce1 {[%clk 0:02:45]}  Rde8 {[%clk 0:01:56]} 24. Rxe6 {[%clk 0:02:40]}  Rxe6 {[%clk 0:01:55]} 25. Ba3 {[%clk 0:02:31]}  g6 {[%clk 0:01:45]} 26. Qd5 {[%clk 0:02:28]}  Qd6 {[%clk 0:01:45]} 27. Bxc5 {[%clk 0:02:24]}  bxc5 {[%clk 0:01:44]} 28. Qxd6 {[%clk 0:02:17]}  Rxd6 {[%clk 0:01:45]} 29. Re1 {[%clk 0:02:17]}  Kf7 {[%clk 0:01:45]} 30. Kf2 {[%clk 0:02:17]}  a5 {[%clk 0:01:40]} 31. Kf3 {[%clk 0:02:16]}  a4 {[%clk 0:01:38]} 32. Rb1 {[%clk 0:02:12]}  Rb6 {[%clk 0:01:27]} 33. Ne1 {[%clk 0:02:11]}  g5 {[%clk 0:01:25]} 34. fxg5 {[%clk 0:02:09]}  Bxg5 {[%clk 0:01:25]} 35. Nc2 {[%clk 0:02:09]}  Bd2 {[%clk 0:01:23]} 36. Na3 {[%clk 0:02:03]}  axb3 {[%clk 0:01:16]} 37. Rxb3 {[%clk 0:01:59]}  Ra6 {[%clk 0:01:16]} 38. Rb7+ {[%clk 0:01:45]}  Kg6 {[%clk 0:01:14]} 39. Nb5 {[%clk 0:01:44]}  Rxa2 {[%clk 0:01:14]} 40. Rb6+ {[%clk 0:01:43]}  Kg5 {[%clk 0:01:13]} 41. Nc7 {[%clk 0:01:41]}  Be3 {[%clk 0:01:07]} 42. Kg3 {[%clk 0:01:21]}  Bf4+ {[%clk 0:00:59]} 43. Kf3 {[%clk 0:01:18]}  Bxc7 {[%clk 0:00:59]} 44. Rc6 {[%clk 0:01:18]}  Bxh2 {[%clk 0:00:56]} 45. Rxc5 {[%clk 0:01:13]}  h5 {[%clk 0:00:56]} 46. Rd5 {[%clk 0:01:13]}  Bg1 {[%clk 0:00:55]} 47. c5 {[%clk 0:01:13]}  h4 {[%clk 0:00:54]} 48. Rd8 {[%clk 0:01:13]}  Rf2# {[%clk 0:00:54]} 0-1


[Site "https://www.chess.com"]

[Event "Titled Tuesday Blitz August 1 Late 2023"]
[White "Pichot, Alan"]
[Black "Moral Garcia, Serafin"]
[WhiteFideId "110973"]
[BlackFideId "2201925"]
[WhiteElo "2840"]
[BlackElo "2532"]
[Result "1/2-1/2"]
[Round "3"]
[TimeControl "180+1"]
[Date "2023.08.01"]
[WhiteClock "0:00:20"]
[BlackClock "0:00:20"]
[Board "27"]

1. e4 {[%clk 0:02:55]}  e5 {[%clk 0:02:59]} 2. Nf3 {[%clk 0:02:54]}  Nf6 {[%clk 0:02:58]} 3. Nc3 {[%clk 0:02:53]}  Nc6 {[%clk 0:02:58]} 4. Bb5 {[%clk 0:02:53]}  Bb4 {[%clk 0:02:57]} 5. Bxc6 {[%clk 0:02:52]}  dxc6 {[%clk 0:02:57]} 6. d3 {[%clk 0:02:52]}  Nd7 {[%clk 0:02:56]} 7. O-O {[%clk 0:02:52]}  O-O {[%clk 0:02:56]} 8. Ne2 {[%clk 0:02:53]}  Re8 {[%clk 0:02:56]} 9. Ng3 {[%clk 0:02:53]}  Nf8 {[%clk 0:02:55]} 10. Be3 {[%clk 0:02:49]}  f6 {[%clk 0:02:51]} 11. Kh1 {[%clk 0:02:48]}  Ne6 {[%clk 0:02:50]} 12. a3 {[%clk 0:02:47]}  Bf8 {[%clk 0:02:50]} 13. Nd2 {[%clk 0:02:42]}  c5 {[%clk 0:02:44]} 14. Qb1 {[%clk 0:02:21]}  a5 {[%clk 0:02:32]} 15. a4 {[%clk 0:02:20]}  b6 {[%clk 0:02:28]} 16. b3 {[%clk 0:02:20]}  Qd7 {[%clk 0:02:10]} 17. Nc4 {[%clk 0:02:21]}  Ba6 {[%clk 0:02:06]} 18. Ne2 {[%clk 0:02:20]}  Nd4 {[%clk 0:02:04]} 19. Nc3 {[%clk 0:02:20]}  Bb7 {[%clk 0:01:58]} 20. Qd1 {[%clk 0:02:18]}  Rad8 {[%clk 0:01:52]} 21. Qd2 {[%clk 0:02:15]}  Qf7 {[%clk 0:01:48]} 22. f4 {[%clk 0:02:12]}  exf4 {[%clk 0:01:47]} 23. Rxf4 {[%clk 0:02:13]}  Bd6 {[%clk 0:01:43]} 24. Nxd6 {[%clk 0:02:05]}  Rxd6 {[%clk 0:01:40]} 25. Raf1 {[%clk 0:02:06]}  Qe7 {[%clk 0:01:32]} 26. Qf2 {[%clk 0:01:59]}  Red8 {[%clk 0:01:24]} 27. Rh4 {[%clk 0:01:56]}  Re6 {[%clk 0:01:13]} 28. Bxd4 {[%clk 0:01:53]}  Rxd4 {[%clk 0:01:06]} 29. Ne2 {[%clk 0:01:52]}  Rd8 {[%clk 0:01:02]} 30. Ng3 {[%clk 0:01:52]}  Bc8 {[%clk 0:01:00]} 31. Nf5 {[%clk 0:01:51]}  Qf8 {[%clk 0:00:56]} 32. Qg3 {[%clk 0:01:51]}  Rc6 {[%clk 0:00:49]} 33. Rg4 {[%clk 0:01:09]}  Bxf5 {[%clk 0:00:49]} 34. Rxf5 {[%clk 0:01:09]}  Rd7 {[%clk 0:00:47]} 35. h4 {[%clk 0:01:09]}  Qd6 {[%clk 0:00:43]} 36. Qf2 {[%clk 0:01:09]}  Re7 {[%clk 0:00:41]} 37. h5 {[%clk 0:01:08]}  h6 {[%clk 0:00:41]} 38. Rg6 {[%clk 0:01:08]}  Kh7 {[%clk 0:00:39]} 39. Qe3 {[%clk 0:01:05]}  Qd8 {[%clk 0:00:35]} 40. Rf4 {[%clk 0:01:01]}  Rce6 {[%clk 0:00:36]} 41. Qg3 {[%clk 0:00:53]}  Qd6 {[%clk 0:00:35]} 42. Qg4 {[%clk 0:00:48]}  Qe5 {[%clk 0:00:34]} 43. Rxh6+ {[%clk 0:00:38]}  Kg8 {[%clk 0:00:28]} 44. Rg6 {[%clk 0:00:38]}  f5 {[%clk 0:00:25]} 45. exf5 {[%clk 0:00:34]}  Qa1+ {[%clk 0:00:24]} 46. Kh2 {[%clk 0:00:34]}  Re1 {[%clk 0:00:24]} 47. Re6 {[%clk 0:00:29]}  R7xe6 {[%clk 0:00:22]} 48. fxe6 {[%clk 0:00:28]}  Rh1+ {[%clk 0:00:22]} 49. Kg3 {[%clk 0:00:29]}  Qe1+ {[%clk 0:00:21]} 50. Rf2 {[%clk 0:00:27]}  Qe3+ {[%clk 0:00:20]} 51. Rf3 {[%clk 0:00:27]}  Qe1+ {[%clk 0:00:20]} 52. Rf2 {[%clk 0:00:21]}  Qe3+ {[%clk 0:00:20]} 53. Qf3 {[%clk 0:00:19]}  Qg5+ {[%clk 0:00:20]} 54. Qg4 {[%clk 0:00:20]}  Qe3+ {[%clk 0:00:20]} 1/2-1/2


[Site "https://www.chess.com"]

[Event "Titled Tuesday Blitz August 1 Late 2023"]
[White "Droin, Augustin"]
[Black "Bazeev, German"]
[WhiteFideId "45105987"]
[BlackFideId "24119350"]
[WhiteElo "2518"]
[BlackElo "2825"]
[Result "0-1"]
[Round "3"]
[TimeControl "180+1"]
[Date "2023.08.01"]
[WhiteClock "0:00:04"]
[BlackClock "0:00:21"]
[Board "28"]

1. e4 {[%clk 0:03:00]}  c5 {[%clk 0:02:48]} 2. Nf3 {[%clk 0:03:00]}  Nf6 {[%clk 0:02:48]} 3. e5 {[%clk 0:02:59]}  Nd5 {[%clk 0:02:49]} 4. Nc3 {[%clk 0:03:00]}  Nxc3 {[%clk 0:02:49]} 5. dxc3 {[%clk 0:03:00]}  Nc6 {[%clk 0:02:50]} 6. Bf4 {[%clk 0:02:59]}  Qb6 {[%clk 0:02:50]} 7. b3 {[%clk 0:02:59]}  Qc7 {[%clk 0:02:49]} 8. Qd2 {[%clk 0:02:58]}  e6 {[%clk 0:02:49]} 9. h4 {[%clk 0:02:49]}  h6 {[%clk 0:02:48]} 10. h5 {[%clk 0:02:48]}  b6 {[%clk 0:02:49]} 11. O-O-O {[%clk 0:02:45]}  a6 {[%clk 0:02:49]} 12. g4 {[%clk 0:02:43]}  b5 {[%clk 0:02:49]} 13. g5 {[%clk 0:02:41]}  c4 {[%clk 0:02:47]} 14. gxh6 {[%clk 0:02:38]}  gxh6 {[%clk 0:02:48]} 15. Bg2 {[%clk 0:02:18]}  Bb7 {[%clk 0:02:43]} 16. Nh2 {[%clk 0:02:12]}  O-O-O {[%clk 0:01:58]} 17. Ng4 {[%clk 0:02:09]}  Rg8 {[%clk 0:01:57]} 18. Bf3 {[%clk 0:02:06]}  Rxg4 {[%clk 0:01:45]} 19. Bxg4 {[%clk 0:02:06]}  Qa5 {[%clk 0:01:45]} 20. Kb1 {[%clk 0:01:57]}  b4 {[%clk 0:01:45]} 21. Rh3 {[%clk 0:01:48]}  Nxe5 {[%clk 0:01:38]} 22. Be2 {[%clk 0:01:33]}  cxb3 {[%clk 0:01:07]} 23. cxb3 {[%clk 0:01:33]}  Be4+ {[%clk 0:01:02]} 24. Ka1 {[%clk 0:01:15]}  Nc6 {[%clk 0:01:02]} 25. Qe3 {[%clk 0:00:52]}  Bf5 {[%clk 0:00:51]} 26. cxb4 {[%clk 0:00:38]}  Bg7+ {[%clk 0:00:49]} 27. Qc3 {[%clk 0:00:27]}  Bxc3+ {[%clk 0:00:40]} 28. Rxc3 {[%clk 0:00:28]}  Qb6 {[%clk 0:00:39]} 29. Rd6 {[%clk 0:00:20]}  Kb7 {[%clk 0:00:36]} 30. Bf3 {[%clk 0:00:19]}  Qxf2 {[%clk 0:00:28]} 31. Bxc6+ {[%clk 0:00:16]}  dxc6 {[%clk 0:00:28]} 32. Rxd8 {[%clk 0:00:17]}  Qxf4 {[%clk 0:00:28]} 33. Kb2 {[%clk 0:00:16]}  Kc7 {[%clk 0:00:22]} 34. Rf8 {[%clk 0:00:04]}  Qd2+ {[%clk 0:00:21]} 0-1


[Site "https://www.chess.com"]

[Event "Titled Tuesday Blitz August 1 Late 2023"]
[White "Basso, Pier Luigi"]
[Black "Manukian, Artak"]
[WhiteFideId "866970"]
[BlackFideId "13301373"]
[WhiteElo "2790"]
[BlackElo "2484"]
[Result "1-0"]
[Round "3"]
[TimeControl "180+1"]
[Date "2023.08.01"]
[WhiteClock "0:02:26"]
[BlackClock "0:01:47"]
[Board "34"]

1. e4 {[%clk 0:02:50]}  c6 {[%clk 0:02:59]} 2. c4 {[%clk 0:02:49]}  d5 {[%clk 0:03:00]} 3. cxd5 {[%clk 0:02:49]}  cxd5 {[%clk 0:03:01]} 4. exd5 {[%clk 0:02:49]}  Nf6 {[%clk 0:03:02]} 5. Qa4+ {[%clk 0:02:46]}  Nbd7 {[%clk 0:03:01]} 6. Nc3 {[%clk 0:02:47]}  g6 {[%clk 0:03:02]} 7. Nf3 {[%clk 0:02:47]}  Bg7 {[%clk 0:03:02]} 8. Bc4 {[%clk 0:02:47]}  O-O {[%clk 0:03:03]} 9. d3 {[%clk 0:02:48]}  Nb6 {[%clk 0:03:02]} 10. Qb3 {[%clk 0:02:48]}  Bf5 {[%clk 0:03:01]} 11. O-O {[%clk 0:02:47]}  Rc8 {[%clk 0:03:00]} 12. Re1 {[%clk 0:02:45]}  Nfd7 {[%clk 0:02:53]} 13. Bg5 {[%clk 0:02:44]}  Nc5 {[%clk 0:02:45]} 14. Qa3 {[%clk 0:02:41]}  Re8 {[%clk 0:02:27]} 15. Bb5 {[%clk 0:02:37]}  Nxd3 {[%clk 0:02:22]} 16. Bxe7 {[%clk 0:02:32]}  Nxe1 {[%clk 0:02:09]} 17. Bxd8 {[%clk 0:02:31]}  Nxf3+ {[%clk 0:02:09]} 18. gxf3 {[%clk 0:02:32]}  Rcxd8 {[%clk 0:02:10]} 19. Bxe8 {[%clk 0:02:30]}  Rxe8 {[%clk 0:02:08]} 20. Qxa7 {[%clk 0:02:29]}  Nc4 {[%clk 0:02:08]} 21. Qxb7 {[%clk 0:02:29]}  Ne5 {[%clk 0:01:52]} 22. d6 {[%clk 0:02:28]}  Nxf3+ {[%clk 0:01:47]} 23. Qxf3 {[%clk 0:02:26]} 1-0


[Site "https://www.chess.com"]

[Event "Titled Tuesday Blitz August 1 Late 2023"]
[White "Rios Escobar, Adan"]
[Black "Krzyzanowski, Marcin"]
[WhiteFideId "3403645"]
[BlackFideId "1132199"]
[WhiteElo "2464"]
[BlackElo "2779"]
[Result "0-1"]
[Round "3"]
[TimeControl "180+1"]
[Date "2023.08.01"]
[WhiteClock "0:00:00"]
[BlackClock "0:00:29"]
[Board "35"]

1. d4 {[%clk 0:03:00]}  Nf6 {[%clk 0:02:59]} 2. g3 {[%clk 0:03:01]}  c5 {[%clk 0:02:54]} 3. d5 {[%clk 0:03:00]}  b5 {[%clk 0:02:53]} 4. a4 {[%clk 0:03:00]}  b4 {[%clk 0:02:53]} 5. c4 {[%clk 0:03:01]}  d6 {[%clk 0:02:51]} 6. b3 {[%clk 0:02:58]}  g6 {[%clk 0:02:51]} 7. Bb2 {[%clk 0:02:58]}  Bg7 {[%clk 0:02:52]} 8. Bg2 {[%clk 0:02:56]}  O-O {[%clk 0:02:52]} 9. Nh3 {[%clk 0:02:56]}  a5 {[%clk 0:02:47]} 10. O-O {[%clk 0:02:56]}  Ra7 {[%clk 0:02:47]} 11. Nd2 {[%clk 0:02:56]}  e5 {[%clk 0:02:44]} 12. dxe6 {[%clk 0:02:51]}  fxe6 {[%clk 0:02:45]} 13. Qc2 {[%clk 0:02:43]}  e5 {[%clk 0:02:22]} 14. Rad1 {[%clk 0:02:37]}  Bf5 {[%clk 0:02:19]} 15. e4 {[%clk 0:02:31]}  Bg4 {[%clk 0:02:05]} 16. f3 {[%clk 0:02:27]}  Bc8 {[%clk 0:01:57]} 17. Rf2 {[%clk 0:02:22]}  Nc6 {[%clk 0:01:57]} 18. Nf1 {[%clk 0:02:19]}  Nd4 {[%clk 0:01:55]} 19. Qd3 {[%clk 0:02:02]}  h6 {[%clk 0:01:50]} 20. Kh1 {[%clk 0:01:58]}  Raf7 {[%clk 0:01:50]} 21. Ne3 {[%clk 0:01:54]}  Be6 {[%clk 0:01:47]} 22. Bxd4 {[%clk 0:01:42]}  cxd4 {[%clk 0:01:44]} 23. Nd5 {[%clk 0:01:41]}  Nd7 {[%clk 0:01:35]} 24. Ng1 {[%clk 0:00:59]}  Nc5 {[%clk 0:01:36]} 25. Qb1 {[%clk 0:00:58]}  h5 {[%clk 0:01:33]} 26. f4 {[%clk 0:00:51]}  h4 {[%clk 0:01:12]} 27. Rdf1 {[%clk 0:00:38]}  hxg3 {[%clk 0:01:02]} 28. hxg3 {[%clk 0:00:39]}  Bg4 {[%clk 0:00:58]} 29. f5 {[%clk 0:00:32]}  Qg5 {[%clk 0:00:52]} 30. Bh3 {[%clk 0:00:29]}  gxf5 {[%clk 0:00:47]} 31. exf5 {[%clk 0:00:26]}  e4 {[%clk 0:00:44]} 32. f6 {[%clk 0:00:20]}  Bh6 {[%clk 0:00:38]} 33. Bxg4 {[%clk 0:00:08]}  Qxg4 {[%clk 0:00:38]} 34. Qd1 {[%clk 0:00:05]}  Qxd1 {[%clk 0:00:38]} 35. Rxd1 {[%clk 0:00:06]}  e3 {[%clk 0:00:36]} 36. Rf5 {[%clk 0:00:05]}  d3 {[%clk 0:00:32]} 37. Rh5 {[%clk 0:00:00]}  Rh7 {[%clk 0:00:29]} 0-1


[Site "https://www.chess.com"]

[Event "Titled Tuesday Blitz August 1 Late 2023"]
[White "Vasques, Antonio Pedro Freixial"]
[Black "Volovich, Vasily"]
[WhiteFideId "1908332"]
[BlackFideId "34169676"]
[WhiteElo "2330"]
[BlackElo "2747"]
[Result "0-1"]
[Round "3"]
[TimeControl "180+1"]
[Date "2023.08.01"]
[WhiteClock "0:00:00"]
[BlackClock "0:00:40"]
[Board "40"]

1. e4 {[%clk 0:03:00]}  e6 {[%clk 0:02:58]} 2. d4 {[%clk 0:03:00]}  d5 {[%clk 0:02:58]} 3. Nd2 {[%clk 0:03:00]}  c5 {[%clk 0:02:58]} 4. Ngf3 {[%clk 0:03:00]}  cxd4 {[%clk 0:02:58]} 5. Nxd4 {[%clk 0:02:57]}  Nf6 {[%clk 0:02:58]} 6. e5 {[%clk 0:02:40]}  Nfd7 {[%clk 0:02:57]} 7. N2f3 {[%clk 0:02:37]}  Nc6 {[%clk 0:02:53]} 8. Bf4 {[%clk 0:02:30]}  Qb6 {[%clk 0:02:50]} 9. Be2 {[%clk 0:02:22]}  Bc5 {[%clk 0:02:48]} 10. c3 {[%clk 0:02:13]}  Qxb2 {[%clk 0:02:21]} 11. O-O {[%clk 0:02:13]}  Nxd4 {[%clk 0:02:10]} 12. cxd4 {[%clk 0:02:05]}  Be7 {[%clk 0:02:06]} 13. Bd3 {[%clk 0:01:47]}  O-O {[%clk 0:02:02]} 14. Bg5 {[%clk 0:01:43]}  Qa3 {[%clk 0:01:45]} 15. Re1 {[%clk 0:01:28]}  h6 {[%clk 0:01:44]} 16. Bxe7 {[%clk 0:01:21]}  Qxe7 {[%clk 0:01:43]} 17. Qb3 {[%clk 0:01:03]}  Nb6 {[%clk 0:01:38]} 18. a4 {[%clk 0:01:02]}  Nc4 {[%clk 0:01:22]} 19. Bxc4 {[%clk 0:00:46]}  dxc4 {[%clk 0:01:23]} 20. Qxc4 {[%clk 0:00:47]}  Bd7 {[%clk 0:01:23]} 21. Rec1 {[%clk 0:00:36]}  Rac8 {[%clk 0:01:18]} 22. Qb3 {[%clk 0:00:34]}  Bc6 {[%clk 0:01:16]} 23. Nd2 {[%clk 0:00:18]}  Bd5 {[%clk 0:01:15]} 24. Qe3 {[%clk 0:00:14]}  Qb4 {[%clk 0:01:05]} 25. Rcb1 {[%clk 0:00:13]}  Qc3 {[%clk 0:01:02]} 26. Kf1 {[%clk 0:00:12]}  b6 {[%clk 0:00:56]} 27. Ra3 {[%clk 0:00:08]}  Qc2 {[%clk 0:00:52]} 28. Ke2 {[%clk 0:00:04]}  Rfd8 {[%clk 0:00:46]} 29. f3 {[%clk 0:00:03]}  Qg6 {[%clk 0:00:42]} 30. Kf2 {[%clk 0:00:02]}  Rc2 {[%clk 0:00:42]} 31. Rd1 {[%clk 0:00:01]}  Rdc8 {[%clk 0:00:41]} 32. Qd3 {[%clk 0:00:00]}  Qg5 {[%clk 0:00:40]} 0-1


[Site "https://www.chess.com"]

[Event "Titled Tuesday Blitz August 1 Late 2023"]
[White "Terry, Renato"]
[Black "Rottenwohrer Suarez, Juan"]
[WhiteFideId "3803457"]
[BlackFideId "32068182"]
[WhiteElo "2921"]
[BlackElo "2516"]
[Result "1-0"]
[Round "3"]
[TimeControl "180+1"]
[Date "2023.08.01"]
[WhiteClock "0:01:19"]
[BlackClock "0:00:00"]
[Board "43"]

1. e4 {[%clk 0:03:00]}  c6 {[%clk 0:02:55]} 2. Nf3 {[%clk 0:03:00]}  d5 {[%clk 0:02:54]} 3. exd5 {[%clk 0:03:00]}  cxd5 {[%clk 0:02:55]} 4. Ne5 {[%clk 0:03:01]}  Nd7 {[%clk 0:02:48]} 5. d4 {[%clk 0:02:59]}  e6 {[%clk 0:02:41]} 6. Bd3 {[%clk 0:02:54]}  Ngf6 {[%clk 0:02:39]} 7. O-O {[%clk 0:02:53]}  Nxe5 {[%clk 0:02:30]} 8. dxe5 {[%clk 0:02:54]}  Nd7 {[%clk 0:02:29]} 9. Re1 {[%clk 0:02:54]}  Nc5 {[%clk 0:02:25]} 10. Nc3 {[%clk 0:02:45]}  Nxd3 {[%clk 0:02:16]} 11. cxd3 {[%clk 0:02:46]}  Be7 {[%clk 0:02:16]} 12. Qg4 {[%clk 0:02:45]}  Kf8 {[%clk 0:02:05]} 13. Be3 {[%clk 0:02:35]}  h5 {[%clk 0:01:56]} 14. Qf4 {[%clk 0:02:34]}  g5 {[%clk 0:01:48]} 15. Qd4 {[%clk 0:02:34]}  Bd7 {[%clk 0:01:41]} 16. Nxd5 {[%clk 0:02:18]}  Bc6 {[%clk 0:01:12]} 17. Nxe7 {[%clk 0:02:16]}  Qxd4 {[%clk 0:01:11]} 18. Bxd4 {[%clk 0:02:00]}  Kxe7 {[%clk 0:01:10]} 19. Bc5+ {[%clk 0:02:00]}  Kd7 {[%clk 0:01:08]} 20. d4 {[%clk 0:01:53]}  Bd5 {[%clk 0:01:05]} 21. Bb4 {[%clk 0:01:41]}  Rac8 {[%clk 0:01:04]} 22. Bc3 {[%clk 0:01:42]}  b6 {[%clk 0:00:56]} 23. a3 {[%clk 0:01:38]}  g4 {[%clk 0:00:51]} 24. Re3 {[%clk 0:01:38]}  h4 {[%clk 0:00:44]} 25. Rae1 {[%clk 0:01:34]}  Rcg8 {[%clk 0:00:40]} 26. Rc1 {[%clk 0:01:30]}  h3 {[%clk 0:00:39]} 27. gxh3 {[%clk 0:01:21]}  gxh3+ {[%clk 0:00:35]} 28. Rg3 {[%clk 0:01:22]}  a5 {[%clk 0:00:18]} 29. Kf1 {[%clk 0:01:20]}  Rg6 {[%clk 0:00:07]} 30. Ke2 {[%clk 0:01:18]}  Bg2 {[%clk 0:00:03]} 31. Bd2 {[%clk 0:01:16]}  Rc8 {[%clk 0:00:02]} 32. Bc3 {[%clk 0:01:16]}  Rc6 {[%clk 0:00:02]} 33. Ke3 {[%clk 0:01:17]}  Rc7 {[%clk 0:00:01]} 34. Re1 {[%clk 0:01:17]}  Rc6 {[%clk 0:00:01]} 35. Kd2 {[%clk 0:01:17]}  Rc8 {[%clk 0:00:02]} 36. Ree3 {[%clk 0:01:18]}  Rcg8 {[%clk 0:00:01]} 37. Kc2 {[%clk 0:01:18]}  Rxg3 {[%clk 0:00:01]} 38. fxg3 {[%clk 0:01:19]}  Rc8 {[%clk 0:00:01]} 39. Kb3 {[%clk 0:01:19]}  Rc6 {[%clk 0:00:00]} 40. Kc2 {[%clk 0:01:19]} 1-0


[Site "https://www.chess.com"]